bitfinex/quotes_BTCUSD_20240613
["timestamp","ask_amount","ask_price","bid_price","bid_amount"]
[1718251047498,0.00086,67440.0,67433.0,0.01030191]
[1718251047709,0.00086,67440.0,67434.0,0.01030191]
[1718251047710,0.00686,67440.0,67434.0,0.01030191]
[1718251047920,0.00686,67440.0,67433.0,0.01130191]
[1718251048133,0.00086,67440.0,67433.0,0.01030191]
[1718251048322,0.01286,67440.0,67433.0,0.01030191]
[1718251048532,0.01986,67440.0,67434.0,0.001]
[1718251048854,0.01286,67440.0,67433.0,0.01030191]
[1718251049308,0.01886,67440.0,67433.0,0.01130191]
[1718251049747,0.00686,67440.0,67433.0,0.01130191]
[1718251050031,0.01786,67440.0,67433.0,0.01130191]
[1718251050266,0.01786,67440.0,67433.0,0.001]
[1718251051108,0.01786,67440.0,67433.0,0.01130191]
[1718251051535,0.01786,67440.0,67433.0,0.001]
[1718251052471,0.10330153,67439.0,67433.0,0.001]
[1718251052894,0.01786,67440.0,67433.0,0.001]
[1718251053110,0.01786,67440.0,67433.0,0.011]
[1718251053276,0.01786,67440.0,67433.0,0.01030191]
[1718251053277,0.01186,67440.0,67433.0,0.01030191]
[1718251053477,0.07215996,67441.0,67440.0,0.00136844]
[1718251054801,0.1752359,67441.0,67440.0,0.00136844]
[1718251055418,0.006,67440.0,67433.0,0.001]
[1718251056103,0.006,67440.0,67429.0,0.22642184]
[1718251056104,0.07215996,67441.0,67429.0,0.22642184]
[1718251056309,0.09715996,67441.0,67440.0,0.002]
[1718251056688,0.20263795,67441.0,67440.0,0.001]
[1718251056889,0.13047799,67441.0,67440.0,0.001]
[1718251057113,0.006,67440.0,67437.0,0.4751]
[1718251057381,0.11747799,67439.0,67437.0,0.48540191]
[1718251057632,0.08115996,67440.0,67437.0,0.4751]
[1718251057839,0.07815996,67440.0,67437.0,0.4751]
[1718251058245,0.07815996,67440.0,67435.0,0.4937]
[1718251058447,0.11717808,67439.0,67435.0,0.4937]
[1718251059006,0.07215996,67440.0,67435.0,0.4937]
[1718251059585,0.012,67439.0,67435.0,0.4947]
[1718251059995,0.025,67439.0,67437.0,0.001]
[1718251060203,0.07215996,67440.0,67436.0,0.01030191]
[1718251060415,0.08415996,67440.0,67436.0,0.01030191]
[1718251060801,0.09715996,67440.0,67436.0,0.01030191]
[1718251061006,0.08415996,67440.0,67436.0,0.01030191]
[1718251061219,0.013,67439.0,67437.0,0.001]
[1718251061688,0.013,67439.0,67436.0,0.01030191]
[1718251062096,0.013,67439.0,67438.0,0.01030191]
[1718251063093,0.013,67439.0,67436.0,0.01130191]
[1718251063317,0.08415996,67440.0,67436.0,0.01030191]
[1718251063891,0.012,67440.0,67437.0,0.14431993]
[1718251064096,0.012,67440.0,67439.0,0.80190191]
[1718251064295,0.00855,67442.0,67439.0,0.95622184]
[1718251064516,0.00855,67442.0,67441.0,0.73010191]
[1718251064718,0.00855,67442.0,67441.0,0.87442184]
[1718251064949,0.00855,67442.0,67441.0,0.99828504]
[1718251065299,0.00855,67442.0,67441.0,1.07008504]
[1718251065498,0.00955,67442.0,67441.0,1.07008504]
[1718251066019,0.00855,67442.0,67441.0,1.07008504]
[1718251066230,0.00955,67442.0,67441.0,1.08408504]
[1718251066614,0.01055,67442.0,67441.0,1.08408504]
[1718251066828,0.01055,67442.0,67441.0,1.01228504]
[1718251067152,0.01055,67442.0,67441.0,1.09808504]
[1718251067351,0.01155,67442.0,67441.0,1.09808504]
[1718251067549,0.01055,67442.0,67441.0,1.08408504]
[1718251067986,0.00955,67442.0,67441.0,1.08408504]
[1718251068379,0.00855,67442.0,67441.0,1.07008504]
[1718251068817,0.00955,67442.0,67441.0,1.08408504]
[1718251069568,0.01055,67442.0,67441.0,1.09808504]
[1718251069779,0.01037154,67442.0,67441.0,1.09808504]
[1718251070160,0.01037154,67442.0,67441.0,1.01764304]
[1718251070313,0.01037154,67442.0,67441.0,0.89377984]
[1718251071120,0.01037154,67442.0,67441.0,0.74945991]
[1718251071298,0.01037154,67442.0,67441.0,0.028]
[1718251075463,0.01037154,67442.0,67441.0,0.02965991]
[1718251075684,0.01037154,67442.0,67441.0,0.028]
[1718251076365,0.46077154,67442.0,67441.0,0.028]
[1718251076984,0.01037154,67442.0,67441.0,0.028]
[1718251081075,0.02871163,67442.0,67441.0,0.028]
[1718251081482,0.33264279,67442.0,67441.0,0.028]
[1718251081884,0.78794279,67442.0,67441.0,0.028]
[1718251082302,0.90564932,67442.0,67441.0,0.028]
[1718251082705,0.97160102,67442.0,67441.0,0.028]
[1718251082903,0.90564932,67442.0,67441.0,0.028]
[1718251083335,0.97644932,67442.0,67441.0,0.014]
[1718251083544,1.04240102,67442.0,67441.0,0.014]
[1718251083746,1.04340102,67442.0,67441.0,0.028]
[1718251083949,1.14240102,67442.0,67441.0,0.014]
[1718251084170,0.01834009,67441.0,67440.0,0.000946]
[1718251084338,0.34213219,67441.0,67440.0,0.000946]
[1718251084541,0.38609281,67441.0,67440.0,0.000946]
[1718251085454,0.22120658,67441.0,67440.0,0.001946]
[1718251085892,0.36552651,67441.0,67440.0,0.001946]
[1718251086133,0.51054009,67428.0,67427.0,0.019946]
[1718251086341,1.49301717,67428.0,67427.0,0.019946]
[1718251086573,1.98538123,67428.0,67427.0,0.019946]
[1718251086804,1.95432722,67428.0,67427.0,0.019946]
[1718251087045,1.85432722,67428.0,67427.0,0.019946]
[1718251087264,2.04647788,67428.0,67427.0,0.019946]
[1718251087483,2.02452697,67428.0,67427.0,0.019946]
[1718251087700,1.93671053,67428.0,67427.0,0.019946]
[1718251087915,1.94971053,67428.0,67427.0,0.020946]
[1718251088126,2.18184466,67428.0,67427.0,0.020946]
[1718251088339,2.18184466,67428.0,67427.0,0.019946]
[1718251088340,1.65234429,67428.0,67427.0,0.019946]
[1718251088545,1.22141172,67428.0,67427.0,0.020946]
[1718251088823,1.22738118,67428.0,67427.0,0.020946]
[1718251089035,1.27127043,67428.0,67427.0,0.020946]
[1718251089277,1.27129411,67428.0,67427.0,0.020946]
[1718251089476,1.22740486,67428.0,67427.0,0.020946]
[1718251089896,1.51561404,67428.0,67427.0,0.020946]
[1718251090318,1.39992479,67428.0,67427.0,0.020946]
[1718251090555,1.47172479,67428.0,67427.0,0.020946]
[1718251091012,1.37172479,67428.0,67427.0,0.020946]
[1718251091471,1.47172479,67428.0,67427.0,0.020946]
[1718251091690,1.39992479,67428.0,67427.0,0.020946]
[1718251091904,1.47172479,67428.0,67427.0,0.020946]
[1718251094151,1.37172479,67428.0,67427.0,0.020946]
[1718251094296,1.47172479,67428.0,67427.0,0.020946]
[1718251094722,1.37172479,67428.0,67427.0,0.020946]
[1718251095128,1.47172479,67428.0,67427.0,0.020946]
[1718251095329,1.29992479,67428.0,67427.0,0.020946]
[1718251095526,1.47172479,67428.0,67427.0,0.020946]
[1718251096262,1.47172575,67428.0,67427.0,0.020946]
[1718251097042,1.37172575,67428.0,67427.0,0.020946]
[1718251098442,1.37172574,67428.0,67427.0,0.020946]
[1718251098867,1.24863991,67428.0,67427.0,0.020946]
[1718251099273,1.37172345,67428.0,67427.0,0.020946]
[1718251099872,1.38875305,67428.0,67427.0,0.020946]
[1718251100078,1.26566951,67428.0,67427.0,0.020946]
[1718251100283,1.24443264,67428.0,67427.0,0.020946]
[1718251101667,0.31740299,67428.0,67427.0,0.020946]
[1718251101873,0.40754308,67428.0,67427.0,0.020946]
[1718251102084,0.40754308,67428.0,67427.0,0.02260591]
[1718251102085,0.027,67428.0,67427.0,0.02260591]
[1718251102338,0.027,67428.0,67427.0,0.72160591]
[1718251102987,0.013,67428.0,67427.0,0.72160591]
[1718251103658,0.027,67428.0,67427.0,0.8009465]
[1718251104311,0.013,67428.0,67427.0,0.8009465]
[1718251104525,0.014,67428.0,67427.0,0.8029465]
[1718251105183,0.014,67428.0,67427.0,0.72360591]
[1718251106311,0.001,67428.0,67427.0,0.72260591]
[1718251106819,0.013,67428.0,67427.0,0.72360591]
[1718251107030,0.001,67428.0,67427.0,0.72260591]
[1718251107496,0.002,67428.0,67427.0,0.73660591]
[1718251107736,0.002,67428.0,67427.0,0.98266643]
[1718251107954,0.002,67428.0,67427.0,1.15446643]
[1718251108416,0.00086,67440.0,67439.0,0.74255991]
[1718251108646,0.00086,67440.0,67439.0,0.95867984]
[1718251108868,0.00086,67440.0,67439.0,0.88687984]
[1718251109086,0.00086,67440.0,67439.0,0.99817782]
[1718251109523,0.00086,67440.0,67439.0,0.88687984]
[1718251110597,0.01386,67440.0,67439.0,0.88887984]
[1718251111018,0.01386,67440.0,67439.0,0.74455991]
[1718251113949,0.01386,67440.0,67439.0,0.45415991]
[1718251114150,0.01386,67440.0,67439.0,0.4525]
[1718251114365,0.01386,67440.0,67439.0,0.002]
[1718251122049,0.04012315,67440.0,67439.0,0.002]
[1718251122255,0.01386,67440.0,67439.0,0.002]
[1718251122453,0.50420009,67440.0,67439.0,0.002]
[1718251122682,0.48586,67440.0,67439.0,0.002]
[1718251123391,0.01386,67440.0,67439.0,0.002]
[1718251123611,0.01386,67440.0,67439.0,0.7464]
[1718251124061,0.01386,67440.0,67439.0,0.002]
[1718251124283,0.01386,67440.0,67439.0,0.00365991]
[1718251127288,0.0130215,67439.0,67432.0,0.7359]
[1718251128336,0.0130215,67439.0,67433.0,0.22751768]
[1718251128550,0.0130215,67439.0,67434.0,0.4502]
[1718251128759,0.0140215,67439.0,67435.0,0.14431993]
[1718251128944,0.0140215,67439.0,67435.0,0.15025079]
[1718251129444,0.001,67439.0,67435.0,0.15025079]
[1718251129643,0.001,67439.0,67435.0,0.25210252]
[1718251130070,0.00086,67440.0,67435.0,0.25210252]
[1718251130318,0.00086,67440.0,67434.0,0.4502]
[1718251130532,0.07215996,67439.0,67434.0,0.4502]
[1718251130743,0.00086,67440.0,67434.0,0.4502]
[1718251131381,0.00086,67440.0,67435.0,0.014]
[1718251131382,0.00186,67440.0,67435.0,0.014]
[1718251131615,0.00186,67440.0,67435.0,0.028]
[1718251132030,0.00086,67440.0,67434.0,0.4502]
[1718251132449,0.00086,67440.0,67434.0,0.4642]
[1718251132671,0.00086,67440.0,67434.0,0.4502]
[1718251133113,0.00086,67440.0,67435.0,0.014]
[1718251133321,0.00186,67440.0,67434.0,0.4642]
[1718251134174,0.00086,67440.0,67434.0,0.4502]
[1718251134374,0.00086,67440.0,67435.0,0.014]
[1718251134587,0.00186,67440.0,67435.0,0.014]
[1718251134988,0.00186,67440.0,67434.0,0.4502]
[1718251134989,0.00086,67440.0,67434.0,0.4642]
[1718251135474,0.00086,67440.0,67434.0,0.4502]
[1718251135692,0.00086,67440.0,67435.0,0.014]
[1718251135821,0.00086,67440.0,67435.0,0.034]
[1718251136038,0.00086,67440.0,67439.0,0.02]
[1718251136242,0.00086,67440.0,67439.0,0.94595037]
[1718251136439,0.00186,67440.0,67439.0,0.96691221]
[1718251136664,0.00186,67440.0,67439.0,0.74486184]
[1718251136867,0.00086,67440.0,67439.0,0.7239]
[1718251137096,0.00086,67440.0,67435.0,0.000946]
[1718251137501,0.00186,67440.0,67439.0,0.014]
[1718251137968,0.00086,67440.0,67435.0,0.000946]
[1718251138323,0.00186,67440.0,67435.0,0.014946]
[1718251138989,0.00186,67440.0,67439.0,0.0718]
[1718251139199,0.00186,67440.0,67439.0,0.94405024]
[1718251139837,0.00086,67440.0,67439.0,0.95305024]
[1718251140056,0.00086,67440.0,67439.0,0.94405024]
[1718251140270,0.00186,67440.0,67439.0,0.95805024]
[1718251140477,0.00186,67440.0,67439.0,0.97205024]
[1718251141381,0.00186,67440.0,67439.0,0.89431993]
[1718251141591,0.00186,67440.0,67439.0,0.028]
[1718251142834,0.00086,67440.0,67435.0,0.706546]
[1718251143258,0.00086,67440.0,67439.0,0.028]
[1718251143869,0.00086,67440.0,67435.0,0.706546]
[1718251144203,0.00086,67440.0,67436.0,0.1496346]
[1718251144441,0.00086,67440.0,67439.0,0.0718]
[1718251146137,0.00086,67440.0,67439.0,0.96035064]
[1718251146345,0.00086,67440.0,67439.0,0.97435064]
[1718251146552,0.00086,67440.0,67439.0,0.90255064]
[1718251146753,0.00086,67440.0,67439.0,1.114114]
[1718251147018,0.00086,67440.0,67439.0,1.100114]
[1718251147239,0.00086,67440.0,67439.0,1.086114]
[1718251147451,0.00086,67440.0,67439.0,1.114114]
[1718251147802,0.00086,67440.0,67439.0,1.06509376]
[1718251148002,0.00086,67440.0,67439.0,1.04509376]
[1718251148213,0.00086,67440.0,67439.0,1.05909376]
[1718251148424,0.00086,67440.0,67439.0,1.00251553]
[1718251148615,0.00086,67440.0,67439.0,0.93441993]
[1718251148834,0.00086,67440.0,67439.0,0.86261993]
[1718251149232,0.00086,67440.0,67439.0,0.87661993]
[1718251149535,0.00086,67440.0,67439.0,0.84861993]
[1718251149749,0.00086,67440.0,67439.0,0.87661993]
[1718251149947,0.00086,67440.0,67439.0,1.21180998]
[1718251150166,0.00086,67440.0,67439.0,1.33895575]
[1718251150407,0.00086,67440.0,67439.0,1.32495575]
[1718251150527,0.00086,67440.0,67439.0,1.35295575]
[1718251151167,0.00086,67440.0,67439.0,1.33895575]
[1718251152819,0.00086,67440.0,67439.0,1.35295575]
[1718251153347,0.00086,67440.0,67439.0,1.32495575]
[1718251153570,0.00086,67440.0,67439.0,1.33895575]
[1718251153787,0.00086,67440.0,67439.0,1.35295575]
[1718251154266,0.00086,67440.0,67439.0,1.33895575]
[1718251154470,0.00086,67440.0,67439.0,1.35295575]
[1718251155444,0.00086,67440.0,67439.0,1.35300064]
[1718251157984,0.00086,67440.0,67439.0,1.40300064]
[1718251158202,0.00854,67449.0,67448.0,0.9771]
[1718251158398,0.00854,67449.0,67448.0,1.27037652]
[1718251158641,0.00854,67449.0,67448.0,1.47100264]
[1718251159416,0.00854,67449.0,67448.0,1.47102577]
[1718251159815,0.00854,67449.0,67448.0,1.48502577]
[1718251160040,0.00854,67449.0,67448.0,1.47102577]
[1718251160247,0.00854,67449.0,67448.0,1.48502577]
[1718251160436,0.00854,67449.0,67448.0,1.49902577]
[1718251160689,0.00854,67449.0,67448.0,1.48502577]
[1718251160903,0.00854,67449.0,67448.0,1.49902577]
[1718251161319,0.00854,67449.0,67448.0,1.47777652]
[1718251162292,0.00854,67449.0,67448.0,1.34837652]
[1718251162530,0.00854,67449.0,67448.0,1.52777652]
[1718251162531,0.00833835,67449.0,67448.0,1.52777652]
[1718251162940,0.00856,67454.0,67453.0,0.2261]
[1718251163152,0.00856,67454.0,67453.0,1.47405453]
[1718251163551,0.00856,67454.0,67453.0,1.51265432]
[1718251164472,0.00856,67454.0,67453.0,1.53565432]
[1718251164643,0.00856,67454.0,67453.0,1.54965432]
[1718251164814,0.00856,67454.0,67453.0,1.63816465]
[1718251165018,0.00856,67454.0,67453.0,1.62416465]
[1718251165232,0.00856,67454.0,67453.0,1.56256486]
[1718251165437,0.00856,67454.0,67453.0,1.52405453]
[1718251166039,0.00856,67454.0,67453.0,1.53805453]
[1718251166855,0.00856,67454.0,67453.0,1.55205453]
[1718251167403,0.00856,67454.0,67453.0,1.53805453]
[1718251167780,0.00856,67454.0,67453.0,1.55205453]
[1718251168013,0.00856,67454.0,67453.0,1.53805453]
[1718251168378,0.00856,67454.0,67453.0,1.55205453]
[1718251174966,0.00856,67454.0,67453.0,1.44435453]
[1718251175296,0.00856,67454.0,67453.0,1.4611953]
[1718251176799,0.00856,67458.0,67457.0,0.2261]
[1718251177009,0.00856,67458.0,67457.0,1.22461993]
[1718251177215,0.00856,67458.0,67457.0,1.29631993]
[1718251177846,0.00856,67472.0,67463.0,0.02]
[1718251178051,0.00856,67472.0,67463.0,0.39211993]
[1718251178279,0.00856,67472.0,67463.0,0.43639203]
[1718251180237,0.00856,67472.0,67463.0,0.45039203]
[1718251180420,0.00856,67472.0,67463.0,0.46439203]
[1718251180635,0.00856,67472.0,67463.0,0.50039203]
[1718251180852,0.00856,67472.0,67463.0,1.30899203]
[1718251181055,0.00856,67472.0,67463.0,1.33699203]
[1718251181705,0.00856,67472.0,67463.0,1.30899203]
[1718251182164,0.00856,67472.0,67463.0,1.32299203]
[1718251183260,0.00856,67472.0,67463.0,1.33699203]
[1718251185436,0.00856,67472.0,67463.0,1.35999203]
[1718251185663,0.00856,67472.0,67463.0,1.45999203]
[1718251185902,0.00856,67472.0,67463.0,1.53626881]
[1718251186345,0.00856,67472.0,67463.0,1.53792881]
[1718251186768,0.00856,67472.0,67463.0,1.56592881]
[1718251186978,0.00856,67472.0,67463.0,1.55192881]
[1718251187211,0.00856,67472.0,67471.0,0.2261]
[1718251187430,0.00856,67472.0,67471.0,1.31008638]
[1718251187659,0.00856,67472.0,67471.0,1.34859671]
[1718251187881,0.00856,67472.0,67471.0,1.32559671]
[1718251189632,0.00856,67472.0,67471.0,1.33959671]
[1718251189845,0.00856,67472.0,67471.0,1.48268676]
[1718251190047,0.00856,67472.0,67471.0,1.48242827]
[1718251190473,0.00856,67472.0,67471.0,1.40640998]
[1718251190672,0.00856,67472.0,67471.0,1.44466182]
[1718251190879,0.00856,67472.0,67471.0,1.40640998]
[1718251193779,0.00856,67472.0,67471.0,1.40610198]
[1718251194408,0.00856,67472.0,67471.0,1.39210198]
[1718251194823,0.00856,67472.0,67471.0,1.40610198]
[1718251196252,0.00856,67472.0,67471.0,1.38610198]
[1718251196640,0.00856,67472.0,67471.0,0.74169448]
[1718251196847,0.00856,67472.0,67471.0,0.66999448]
[1718251197043,0.00856,67472.0,67471.0,0.70600248]
[1718251197277,0.00856,67472.0,67471.0,0.34911243]
[1718251197495,0.75556,67472.0,67471.0,0.27231993]
[1718251200414,0.75556,67472.0,67471.0,0.47811193]
[1718251200415,0.00856,67472.0,67471.0,0.47811193]
[1718251200637,0.00856,67472.0,67471.0,0.34401993]
[1718251200853,0.00856,67472.0,67471.0,0.32327792]
[1718251201065,0.00856,67472.0,67471.0,0.39497792]
[1718251201758,0.75706,67472.0,67471.0,0.17326593]
[1718251202652,0.00856,67472.0,67471.0,0.17326593]
[1718251202887,0.75706,67472.0,67471.0,0.17326593]
[1718251203337,0.75706,67472.0,67471.0,0.028946]
[1718251204448,0.75706,67472.0,67471.0,0.0390106]
[1718251205395,0.75706,67472.0,67471.0,0.18333053]
[1718251206300,0.75706,67472.0,67471.0,0.028946]
[1718251207234,0.757368,67472.0,67471.0,0.028946]
[1718251207459,0.777368,67472.0,67471.0,0.028946]
[1718251207697,0.757368,67472.0,67471.0,0.028946]
[1718251207920,0.757368,67472.0,67471.0,0.014946]
[1718251208136,0.757368,67472.0,67471.0,0.028946]
[1718251208346,0.757368,67472.0,67471.0,0.014946]
[1718251208559,0.75706,67472.0,67471.0,0.028946]
[1718251211741,0.757368,67472.0,67471.0,0.028946]
[1718251212876,0.777368,67472.0,67471.0,0.028946]
[1718251214785,0.9731308,67472.0,67471.0,0.028946]
[1718251215017,0.9731308,67472.0,67460.0,0.00060104]
[1718251215018,0.451208,67461.0,67460.0,0.00060104]
[1718251215245,0.59506796,67461.0,67460.0,0.00060104]
[1718251215462,0.6996156,67461.0,67460.0,0.00060104]
[1718251215708,0.90586338,67461.0,67460.0,0.00060104]
[1718251216154,0.80131574,67461.0,67460.0,0.00060104]
[1718251217048,0.80131574,67461.0,67460.0,0.00160104]
[1718251217049,1.57461975,67461.0,67460.0,0.00160104]
[1718251217266,1.6183818,67461.0,67460.0,0.00160104]
[1718251217491,1.57461975,67461.0,67460.0,0.00160104]
[1718251217712,1.46863567,67461.0,67460.0,0.00160104]
[1718251217933,1.57354958,67461.0,67460.0,0.00160104]
[1718251218370,1.63027194,67461.0,67460.0,0.00260104]
[1718251218598,0.451208,67442.0,67441.0,0.4774]
[1718251218839,0.431208,67442.0,67439.0,0.000946]
[1718251219079,0.000308,67440.0,67439.0,0.000946]
[1718251219366,0.02,67448.0,67439.0,0.14526593]
[1718251219367,0.302,67448.0,67439.0,0.14526593]
[1718251219621,0.06564307,67463.0,67439.0,0.14526593]
[1718251219622,0.000308,67460.0,67447.0,0.2466]
[1718251219844,0.43295979,67460.0,67448.0,0.61294881]
[1718251220060,0.000308,67466.0,67448.0,0.60701993]
[1718251220061,0.000308,67462.0,67448.0,0.60701993]
[1718251220287,0.237408,67458.0,67449.0,0.1]
[1718251220503,0.237408,67458.0,67450.0,0.14431993]
[1718251220752,0.237408,67464.0,67450.0,0.17024956]
[1718251220964,0.001,67460.0,67451.0,0.6941]
[1718251221177,0.001,67460.0,67452.0,0.15024905]
[1718251221617,0.237408,67464.0,67452.0,0.14431993]
[1718251221870,0.237408,67464.0,67453.0,0.09384199]
[1718251221871,0.007,67458.0,67453.0,0.09384199]
[1718251222087,0.007,67458.0,67454.0,0.14431993]
[1718251222735,0.007,67458.0,67455.0,0.00592914]
[1718251222941,0.001,67458.0,67456.0,0.14431993]
[1718251223381,0.237408,67464.0,67456.0,0.14431993]
[1718251223797,0.001,67460.0,67456.0,0.14431993]
[1718251224224,0.237408,67464.0,67457.0,0.01583199]
[1718251224475,0.000308,67464.0,67458.0,0.14431993]
[1718251225561,0.001308,67464.0,67458.0,0.14431993]
[1718251225771,0.242508,67469.0,67459.0,0.00592913]
[1718251225989,0.242508,67469.0,67460.0,0.14431993]
[1718251226204,0.003,67464.0,67460.0,0.14431993]
[1718251227466,0.242508,67469.0,67460.0,0.14431993]
[1718251228095,0.00856,67472.0,67460.0,0.15875192]
[1718251228316,0.00856,67472.0,67462.0,0.02]
[1718251228528,0.00856,67472.0,67463.0,0.15024795]
[1718251228738,0.00856,67472.0,67463.0,0.17024795]
[1718251229155,0.00856,67472.0,67463.0,0.15024795]
[1718251229369,0.00856,67472.0,67463.0,0.14431993]
[1718251230022,0.001,67464.0,67463.0,0.16431993]
[1718251230233,0.001,67464.0,67463.0,0.14431993]
[1718251230444,0.001,67464.0,67463.0,0.16431993]
[1718251230653,0.001,67464.0,67463.0,0.25634432]
[1718251231065,0.001,67464.0,67463.0,0.46213632]
[1718251231272,0.001,67464.0,67463.0,0.59613632]
[1718251231706,0.001,67464.0,67463.0,0.65911443]
[1718251232149,0.001,67464.0,67463.0,0.67311443]
[1718251232587,0.001,67464.0,67463.0,0.65911443]
[1718251232803,0.001,67464.0,67463.0,0.67311443]
[1718251233019,0.001,67464.0,67463.0,0.59613632]
[1718251233282,0.00186,67464.0,67463.0,0.59613632]
[1718251234801,0.00186,67464.0,67463.0,0.58213632]
[1718251235024,0.00086,67464.0,67463.0,0.59613632]
[1718251235235,0.00086,67464.0,67463.0,0.61013632]
[1718251235657,0.00086,67464.0,67463.0,0.58213632]
[1718251235871,0.00086,67464.0,67463.0,0.61013632]
[1718251236104,0.00186,67464.0,67463.0,0.61013632]
[1718251236322,0.00086,67464.0,67463.0,0.59613632]
[1718251236529,0.00086,67464.0,67463.0,0.58213632]
[1718251236732,0.00186,67464.0,67463.0,0.61013632]
[1718251237199,0.00086,67464.0,67463.0,0.57613632]
[1718251237417,0.00086,67464.0,67463.0,0.37034432]
[1718251237629,0.00086,67464.0,67463.0,0.39034432]
[1718251237840,0.00086,67464.0,67463.0,0.59613632]
[1718251238049,0.00086,67464.0,67463.0,0.58213632]
[1718251238254,0.00086,67464.0,67463.0,1.36853632]
[1718251238467,0.00086,67464.0,67463.0,1.34546427]
[1718251238695,0.00086,67464.0,67463.0,1.36673048]
[1718251238912,0.00086,67464.0,67463.0,1.28980253]
[1718251239128,0.00086,67464.0,67463.0,1.26853632]
[1718251239832,0.00186,67464.0,67463.0,1.09074432]
[1718251240055,0.00186,67464.0,67463.0,1.07074432]
[1718251240272,0.00086,67464.0,67463.0,1.05674432]
[1718251240943,0.00186,67464.0,67463.0,1.07074432]
[1718251241165,0.00186,67464.0,67463.0,1.08860624]
[1718251241374,0.00186,67464.0,67463.0,0.38820624]
[1718251241580,0.00186,67464.0,67463.0,0.27618185]
[1718251241798,0.00186,67464.0,67463.0,0.29018185]
[1718251241932,0.00086,67464.0,67463.0,0.27618185]
[1718251242155,0.00086,67464.0,67463.0,1.00678185]
[1718251242365,0.00186,67464.0,67463.0,1.00678185]
[1718251242573,0.00086,67464.0,67463.0,1.11785323]
[1718251242800,0.00086,67464.0,67463.0,1.13185323]
[1718251243007,0.00186,67464.0,67463.0,1.14585323]
[1718251243219,0.00186,67464.0,67463.0,1.13185323]
[1718251243918,0.00856,67472.0,67471.0,0.049692]
[1718251244127,0.00856,67472.0,67471.0,0.49991993]
[1718251245490,0.00856,67472.0,67471.0,0.35781993]
[1718251245692,0.00856,67472.0,67471.0,0.15831993]
[1718251247136,0.00956,67472.0,67471.0,0.17231993]
[1718251247360,0.00956,67472.0,67471.0,0.26286192]
[1718251247585,0.00956,67472.0,67471.0,0.17231993]
[1718251249967,0.00956,67472.0,67471.0,0.18985512]
[1718251251069,0.00956,67472.0,67471.0,0.17231993]
[1718251252440,0.00956,67472.0,67471.0,0.028]
[1718251253061,0.00956,67472.0,67471.0,0.24401993]
[1718251253274,0.00956,67472.0,67471.0,0.27042192]
[1718251254340,0.00956,67472.0,67471.0,0.28732048]
[1718251254735,0.00956,67472.0,67471.0,0.26091849]
[1718251255435,0.00956,67472.0,67471.0,0.33900068]
[1718251255861,0.45055996,67478.0,67471.0,0.33900068]
[1718251256093,0.0938611,67489.0,67475.0,0.0717]
[1718251256094,0.000308,67482.0,67475.0,0.0717]
[1718251256294,0.000308,67482.0,67476.0,0.17100457]
[1718251256725,0.0221611,67489.0,67481.0,0.0717]
[1718251256937,0.0221611,67489.0,67482.0,0.14431993]
[1718251257567,0.07215996,67488.0,67482.0,0.14431993]
[1718251258688,0.000308,67486.0,67482.0,0.001]
[1718251258896,0.4482,67484.0,67482.0,0.001]
[1718251259568,0.4482,67484.0,67482.0,0.002]
[1718251260023,0.4482,67484.0,67482.0,0.001]
[1718251260242,0.4482,67484.0,67482.0,0.002]
[1718251260682,0.4482,67484.0,67482.0,0.001]
[1718251260888,0.4482,67484.0,67479.0,0.0717]
[1718251261100,0.4482,67484.0,67479.0,0.21601993]
[1718251261306,0.4572,67484.0,67482.0,0.001]
[1718251261946,0.4562,67484.0,67482.0,0.001]
[1718251262375,0.4572,67484.0,67482.0,0.001]
[1718251262810,0.4562,67484.0,67482.0,0.001]
[1718251263022,0.008,67484.0,67482.0,0.001]
[1718251264542,0.009,67484.0,67482.0,0.001]
[1718251264763,0.009,67484.0,67483.0,0.14431993]
[1718251265019,0.009,67484.0,67483.0,0.59841993]
[1718251265227,0.009,67484.0,67483.0,0.73206192]
[1718251265675,0.008,67484.0,67483.0,0.73206192]
[1718251266124,0.009,67484.0,67483.0,0.73306192]
[1718251266538,0.001,67484.0,67483.0,0.73306192]
[1718251266746,0.001,67484.0,67483.0,0.75306192]
[1718251266986,0.005,67484.0,67483.0,0.75306192]
[1718251267186,0.005,67484.0,67483.0,0.97346192]
[1718251267187,0.00186,67484.0,67483.0,0.97346192]
[1718251267392,0.00186,67484.0,67483.0,1.05059278]
[1718251267620,0.00186,67484.0,67483.0,1.18484069]
[1718251267829,0.00186,67484.0,67483.0,1.42029269]
[1718251268032,0.00186,67484.0,67483.0,1.53429269]
[1718251268453,0.00086,67484.0,67483.0,1.52029269]
[1718251268668,0.00086,67484.0,67483.0,1.50629269]
[1718251268883,0.0221611,67489.0,67488.0,0.904892]
[1718251269094,0.0221611,67489.0,67488.0,1.42429441]
[1718251269313,0.00856,67495.0,67494.0,0.225792]
[1718251269314,0.00809505,67495.0,67494.0,0.225792]
[1718251269544,1e-08,67495.0,67494.0,1.4525907]
[1718251269752,1e-08,67495.0,67494.0,1.27545984]
[1718251270011,1e-08,67495.0,67494.0,1.35340458]
[1718251270232,1e-08,67495.0,67494.0,1.36783657]
[1718251270449,1e-08,67495.0,67494.0,1.36783954]
[1718251270667,1e-08,67495.0,67494.0,1.34659163]
[1718251271054,1e-08,67495.0,67494.0,1.45399163]
[1718251271542,1e-08,67495.0,67494.0,0.35069963]
[1718251271755,0.00100001,67495.0,67494.0,0.27231993]
[1718251271970,1e-08,67495.0,67494.0,0.25831993]
[1718251272201,1e-08,67495.0,67494.0,0.028]
[1718251272202,0.68380801,67495.0,67494.0,0.028]
[1718251272421,0.68480801,67495.0,67494.0,0.014]
[1718251272626,0.68153879,67495.0,67484.0,0.00592657]
[1718251272840,0.68153879,67495.0,67485.0,0.14431993]
[1718251273055,0.68253879,67495.0,67494.0,0.014]
[1718251273277,0.002,67495.0,67494.0,0.15831993]
[1718251274367,0.0004,67500.0,67494.0,0.15831993]
[1718251274593,0.0004,67500.0,67495.0,0.14431993]